Cogmind - Beta 13 @@@ ROGUE MODE // 2024.05.24 @ 12:17:07 Player: Beef Result: Destroyed by G-34 Mercenary with Small Laser Performance ------------- Evolutions (0) 0 Regions Visited (1) 200 Robots Destroyed (12) 60 Value Destroyed (220) 220 Prototype IDs (2) 40 Alien Tech Used (0) 0 Bonus (0) 0 TOTAL SCORE: 520 Bonus ------- None Cogmind --------- Core Integrity 0/250 Matter 273/300 Energy 100/100 System Corruption 0% Temperature Cool (6) Movement Core (700) Ox13 Location -10/Materials Parts ------- > --- POWER (1) -------- (None) > --- PROPULSION (2) --- (None) > --- UTILITY (2) ------ High-capacity Storage Unit > --- WEAPON (2) ------- Light Assault Rifle Light Assault Rifle > --- INVENTORY (20) --- Ion Engine Wheel Heat Sink Small Storage Unit Small Matter Pod (38) Seismic Detector Peak State ------------ > --- POWER ------------ Light Ion Engine > --- PROPULSION ------- Wheel Wheel > --- UTILITY ---------- High-capacity Storage Unit Improved Terrain Scanner > --- WEAPON ----------- Assault Rifle Light Assault Rifle > --- INVENTORY -------- Ion Engine Aluminum Leg Aluminum Leg Wheel Wheel Heat Sink Small Storage Unit Small Matter Pod Seismic Detector Light Assault Rifle [Rating: 10] Favorites ----------- Power Light Ion Engine Engine Light Ion Engine Propulsion Wheel Leg Aluminum Leg Wheel Wheel Utility Improved Terrain Scanner Device Improved Terrain Scanner Storage Small Storage Unit Weapon Light Assault Rifle Ballistic Gun Light Assault Rifle Build | -11 -10 ------- Run | Yrd Mat Slots Evolved . | . . Power . | . . Propulsion . | . . Utility . | . . Weapon . | . . Parts Attached 14 | 7 7 Power 2 | 1 1 Engine 2 | 1 1 Core . | . . Reactor . | . . Propulsion 5 | 2 3 Treads . | . . Leg 2 | . 2 Wheel 3 | 2 1 Hover . | . . Flight . | . . Utility 3 | 2 1 Device 1 | 1 . Storage 2 | 1 1 Processor . | . . Hackware . | . . Protection . | . . Artifact . | . . Weapon 4 | 2 2 Energy Gun . | . . Energy Cannon . | . . Ballistic Gun 4 | 2 2 Ballistic Cannon . | . . Launcher . | . . Special Weapon . | . . Impact Weapon . | . . Slashing Weapon . | . . Piercing Weapon . | . . Special Melee Weapon . | . . Unidentified Prototypes . | . . Parts Lost 10 | . 10 Power 2 | . 2 Propulsion 5 | . 5 Utility 1 | . 1 Weapon 2 | . 2 Highest Loss Streak 7 | . 7 To Critical Strikes . | . . Average Slot Usage (%) 89 | . 89 Engine 10 | . 10 Leg 8 | . 8 Wheel 15 | . 15 Device 11 | . 11 Storage 14 | . 14 Ballistic Gun 27 | . 27 Naked Turns . | . . Heaviest Build 49 | 12 49 Greatest Support 20 | 20 20 Greatest Overweight (x) 4 | . 4 Average Overweight (x) . | . . Largest Inventory Capacity 20 | 8 20 Average Capacity 13 | 7 16 Most Carried 10 | 7 10 Average Carried 6 | 3 7 Final Capacity 20 | 8 20 Final Carried 7 | 7 6 Class Distribution -------------------- 100% | Mutant Dominant Class ---------------- Mutant | -10/Materials Resources | -11 -10 ----------- Run | Yrd Mat Matter Collected 473 | 310 163 Remotely . | . . Salvage Created 389 | 130 259 Parts 31 | 12 19 Haulers Intercepted . | . . Recyclers Shooed . | . . Parts Field Recycled . | . . Retrieved Matter . | . . Parts Self-Destructed . | . . Prevented . | . . Kills | -11 -10 ------- Run | Yrd Mat Combat Hostiles Destroyed 6 | . 6 Guns 6 | . 6 Classes Destroyed 6 | 3 3 Worker 2 | 2 . Builder 1 | . 1 Tunneler 2 | 2 . Recycler 1 | 1 . Swarmer 1 | . 1 Grunt 5 | . 5 Best Kill Streak 3 | 3 2 Combat Bots Only 2 | . 2 Max Kills in Single Turn 1 | 1 1 Gunslinging . | . . Exploded . | . . Melee . | . . Uniques/NPCs Destroyed . | . . Combat | -11 -10 -------- Run | Yrd Mat Hostile Shots Fired 110 | . 110 Missed 22 | . 22 Damage Taken 1005 | . 1005 Core 256 | . 256 Absorbed by Shields . | . . Core Remaining (%) 100 | 100 . Volleys Fired 57 | 10 47 Largest 2 | 2 2 Hottest 40 | 40 40 Shots Fired 104 | 20 84 Gun 104 | 20 84 Cannon . | . . Launcher . | . . Special . | . . Kinetic 104 | 20 84 Thermal . | . . Explosive . | . . Electromagnetic . | . . Robot Hit Streak 9 | 4 9 Robot Miss Streak 5 | 3 5 Penetration Max . | . . Secondary Targets 1 | . 1 Max Gunslinging Chain 1 | . 1 Shots Hit Robots 65 | 10 55 Core Hits 26 | 6 20 Critical Kills . | . . Critical Parts Destroyed 1 | . 1 Critical Strikes 1 | . 1 Destroy 1 | . 1 Melee Attacks . | . . Impact . | . . Slashing . | . . Piercing . | . . Sneak Attacks . | . . Combat Hostiles . | . . Follow-up Attacks . | . . Damage Inflicted 611 | 107 504 Guns 611 | 107 504 Cannons . | . . Explosions . | . . Melee . | . . Ramming . | . . Kinetic 611 | 107 504 Thermal . | . . Explosive . | . . Electromagnetic . | . . Impact . | . . Slashing . | . . Piercing . | . . Highest Corruption . | . . Average Corruption . | . . Corruption Purged . | . . Corruption Blocked . | . . Overload Shots . | . . Overflow Damage . | . . Projectiles . | . . Explosions . | . . Melee . | . . Knockbacks . | . . Impact . | . . Kinetic . | . . Secondary . | . . Self-Inflicted Damage . | . . Shots . | . . Rammed . | . . Targets Rammed . | . . Kicked . | . . Crushed . | . . Highest Temperature 55 | . 55 Average Temperature 12 | . 12 Received Heat Transfer 489 | . 489 Siege Activations . | . . Robots Corrupted . | . . Combat Hostiles . | . . Parts Fried . | . . Impact Corruptions . | . . Robots Melted . | . . Combat Hostiles . | . . Parts Melted . | . . Heat Transferred . | . . Parts Sabotaged . | . . Parts Stolen . | . . Parts Stripped . | . . Power Chain Reactions . | . . Alert | -11 -10 ------- Run | Yrd Mat Peak Influence 131 | 25 131 Initial 16 | . 16 Average 45 | 7 60 Maximum Alert Level . | . . Low Security (%) 100 | 100 100 Level 1 . | . . Level 2 . | . . Level 3 . | . . Level 4 . | . . Level 5 . | . . High Security . | . . Max Security . | . . Squads Dispatched 2 | . 2 Investigation . | . . Extermination . | . . Reinforcement 2 | . 2 Assault . | . . Garrison . | . . Intercept . | . . Searches Triggered . | . . Construction Impeded . | . . Haulers Reinforced . | . . Active Scanning Responses . | . . Cargo Convoy Interrupts . | . . Stealth | -11 -10 --------- Run | Yrd Mat Distress Signals 1 | . 1 Communications Jammed . | . . Distress Signals . | . . Times Spotted 11 | . 11 Peak Tracking Total 6 | . 6 Tactical Retreats 1 | . 1 Traps | -11 -10 ------- Run | Yrd Mat Traps Triggered . | . . Indirectly . | . . Trap Hack Attempts . | . . Triggered . | . . Disarmed . | . . Reprogrammed . | . . Reused . | . . Traps Extracted . | . . Installed . | . . Triggered . | . . Machines | -11 -10 ---------- Run | Yrd Mat Machines Disabled . | . . Max in Single Turn . | . . Machines Repaired . | . . Machines Dismantled . | . . Machines Sabotaged . | . . Overloaded Fab Kills . | . . Hacking | -11 -10 --------- Run | Yrd Mat Machines Accessed 2 | . 2 Terminals 1 | . 1 Fabricators . | . . Repair Stations . | . . Recycling Units 1 | . 1 Scanalyzers . | . . Garrison Access . | . . Total Hacks 6 | . 6 Successful 2 | . 2 Failed 4 | . 4 Catastrophic . | . . Database Lockouts . | . . Manual . | . . Terminals 5 | . 5 Fabricators . | . . Repair Stations . | . . Recycling Units 1 | . 1 Scanalyzers . | . . Garrison Access . | . . Terminal Hacks 1 | . 1 Prototype ID Bank 1 | . 1 Fabricator Hacks . | . . Repair Station Hacks . | . . Recycling Unit Hacks 1 | . 1 Report Inventory 1 | . 1 Scanalyzer . | . . Garrison Access Hacks . | . . Unauthorized Hacks . | . . Terminals . | . . Fabricators . | . . Repair Stations . | . . Recycling Units . | . . Scanalyzers . | . . Garrison Access . | . . Data Cores Recovered . | . . Used . | . . Hacking Detections 1 | . 1 Full Trace Events . | . . Feedback Events . | . . Feedback Blocked . | . . Robot Schematics Acquired . | . . Robots Built . | . . Authchips . | . . Time . | . . Total Robot Build Rating . | . . Part Schematics Acquired . | . . Parts Built . | . . Authchips . | . . Time . | . . Total Part Build Rating . | . . Parts Repaired . | . . Time . | . . Parts Recycled . | . . Recycled Matter . | . . Retrieved Matter . | . . Retrieved Components . | . . Parts Scanalyzed . | . . Part Schematics Acquired . | . . Parts Damaged . | . . Bothacking | -11 -10 ------------ Run | Yrd Mat Used RIF Installer . | . . Robots Hacked . | . . Non-combat . | . . Combat . | . . Robot Hacks Applied . | . . Relay Couplers Released . | . . Fabnet Peak Effective % . | . . Robots Rewired . | . . Allies Hacked . | . . Hacks Repelled . | . . Allies | -11 -10 -------- Run | Yrd Mat Total Allies . | . . Largest Group . | . . Highest-Rated Group . | . . Highest-Rated Ally . | . . Total Orders . | . . Ally Attacks . | . . Total Damage . | . . Kills . | . . Allies Corrupted . | . . Allies Melted . | . . Intel | -11 -10 ------- Run | Yrd Mat Robot Analysis Total . | . . Derelict Logs Recovered . | . . Drone Launches . | . . Drone Recoveries . | . . Exploration | -11 -10 ------------- Run | Yrd Mat Turns Passed 410 | 118 292 Spaces Moved 248 | 90 158 Core 2 | 2 . Treads . | . . Legs 11 | . 11 Wheels 235 | 88 147 Hover . | . . Flight . | . . Fastest Speed 50 | 50 80 Average Speed 92 | 79 100 Slowest Speed 260 | 80 260 Overloaded Moves . | . . Propulsion Burnouts . | . . Robots Hopped . | . . Cave-ins Triggered . | . . Exploration Rate (%) 19 | 4 35 Regions Visited 1 Branch Regions . Pre-discovered Areas . | . . Known Exits Taken . | . . Unknown Exits Taken 1 | 1 . Scrap Searched . | . . Spaces Dug . | . . Terrain Destroyed . | . . Melee . | . . Projectile . | . . AOE . | . . Terrain Rammed . | . . Walls Destroyed . | . . Machines Disabled . | . . Actions | -11 -10 --------- Run | Yrd Mat Total 332 | 114 218 Wait 3 | 1 2 Move 247 | 89 158 Hop . | . . Pick Up 10 | 7 3 Fast Attach 9 | 7 2 Attach 4 | . 4 Detach . | . . Swap 1 | . 1 Drop 1 | . 1 Fire 57 | 10 47 Melee . | . . Ram . | . . Kick . | . . Crush . | . . Escape Stasis . | . . Rewire . | . . Trap . | . . Miscellaneous . | . . Route ------- -11/Scrapyard -10/Materials (discovered 1 exit: [*Mat]) History --------- Turn | Location | Event 36 | -11/Scrapyard | Discovered new exit (range 16) 119 | -11/Scrapyard | Entered Materials 196 | -10/Materials | Discovered new exit (range 15) 309 | -10/Materials | Build established: Mutant 314 | -10/Materials | Lost 3 parts (1p2n) 361 | -10/Materials | Core integrity fell below 50% 400 | -10/Materials | Core integrity fell below 20% 411 | -10/Materials | Destroyed by G-34 Mercenary with Small Laser Last Messages --------------- 00338_ K-01 Serf collects debris. 00342_ Assault Rifle destroyed. 00352_ S-10 Pest destroyed. 00355_ Critical hit (Burn: +37). 00357_ R-06 Scavenger collects Aluminum Leg. 00360_ R-06 Scavenger collects Flight Unit. 00362_ Lgt. Assault Rifle destroyed. 00363_ R-06 Scavenger collects Imp. Heat Sink. 00364_ Ion Engine destroyed. 00366_ Aluminum Leg destroyed. 00367_ R-06 Scavenger collects Lgt. Ion Engine. 00368_ G-34 Mercenary destroyed. 00368_ Imp. Terrain Scanner destroyed. 00369_ Acquired 45 matter. 00384_ S-10 Pest destroyed. 00386_ Acquired 11 matter. 00389_ Acquired Lgt. Assault Rifle. 00393_ Aluminum Leg destroyed. 00396_ K-01 Serf collects debris. 00407_ Wheel destroyed. Map ----- +----------------------------------------------------+ | | | ?????????????#########?????????????????????????? | | ?????????????# #??#??????????????????????? | | ????????#????# """ #?????????????????????????? | | ?????????????# """ #?????????????????????????? | | ?????????????# """ #?????????????????????????# | | ?????????????# #????#????????????????????# | | ???????#????#####+#########################????# | | ????????????## #????# | | ?????????????# < #????# | | ?????????????# ##???# | | ???????????#?####+########### ####### #?#??# | | ???#???????????# """ #????## # # #????# | | ???????????????# "T" #???#?# # """ # #????# | | ?????????????#?# #?#???# # """ + ###### | | ????????#??????# [ = ###???# # """ # | | ??????????????## *[ #??##?# # # | | ??????#????????# ^%==#?#??## # """ # | | ?????#???#?????####+###???#?# # """ # | | ???????????????#??# #?####### # """ # | | ????????????##????# ###* ! # # # | | ??????????????????# #?# # # "Y" ########## | | ????##??#?##????#?# ###g""" # # """ ##???????? | | ??????????????????#!#?# """ # # #?????? ?? | | ??????????#########!### """ + #######????????? | | ?????#???# + #?#@ g # ???????????????? | | ?????????# ! # #?# """ #??????????????????? | | ?????????# ??# ### """ #??????"???????????? | | ?????????# ????# *# """ #? ????? ???????"??? | | ?????????# ??????+ =%+= #???? ???????? ??"?? | | ?????????#?????? ?# =!# "T" + ?????????????????? | | ???????????? ?????# # """ # ?????????????????? | | ????????????? ? # #######? ??? ????????????? | | ????????#???? ????# ??? ???? ?????#?????????? | | ??????????#???????# ???? ?? ???????????????? | | ??????????????????# % ?????? ???????????????? | | ????????? ??????## ?? ????" ??????????? | | ??????????????????# ? ???????????????????? | | ?????????????????## ????????????????????? | | ??????????????????# ???????????????????? | | ??????????????????# ???????????????????? | | ??????????????????# #######??????????????????? | | ??????????????????# #????????????????????????? | | ??????????????????# ?????????????????????????? | | ??????????????????# ?????????????????????????? | | ??????????????????? ?????????????????????????? | | ???????????????????????????????????????????????? | | ???????????????????????????????????????????????? | | ???????????????????????????????????????????????? | | ???????????????????????????????????????????????? | +----------------------------------------------------+ Best States ------------- Heat Dissipation 25 Energy Generation 10 Energy Capacity 250 Matter Stores 300 Matter Capacity 300 Sight Range 16 Terrain Scan Range 16 Terrain Scan Density 10 Evasion (%) 44 Item Schematics ----------------- None Robot Schematics ------------------ None Fabricated ------------ Nothing Alien Tech Used ----------------- None Achievements -------------- None Challenges ------------ None Game ------ Seed ArchitectPoweredBeam Manual? 0 Play Time 00:05:11 Cumulative 16.2 hours Start 2024.05.24 @ 12:14:02 End 2024.05.24 @ 12:17:07 Sessions 1 Manual Loads 0 Difficulty Rogue Special Mode None Game No. 14 Rogue 14 Adventurer 0 Explorer 0 Win Type - Total 0 Types 0/0/0/0/0/0/0/0/0 Lore% 28 Gallery% 28 Achievement% 25 Wizard Run 0 Options --------- Layout 0 ASCII 0 Keyboard 1 Movement Numpad Keybinds 0 Fullscreen 2 Font 18/SmallcapsGlow Map View 76x50 Zoom Use 0% Tactical HUD 1 Map Filters NONE Filters NONE Steam 1 RUN: effcba60-a1b3-4e09-a124-e60ed9833c3e